Workbook

Sheet Lathund

Sheet Projektinformation
B2: Namn projekt
B3: Skede
B4: Byggår | C4: 2027
B5: Krav minskad klimatpåverkan (%)
B6: Minskad klimatpåverkan enl. Kalkyl (%) | C6: ='Förenklad klimatkalkyl'!Q39 -> 
B7: Underlag mängder
B8: Datum på underlag
B9: Investeringskostnad (Mkr)
B10: Prisnivå
B11: Kort beskrivning av åtgärd

Sheet Förenklad klimatkalkyl
B4: malldatum: 2025-10-22
F5: Referenskalkyl | I5: Gemensamma miljökrav | L5: Utgångsläge entreprenad (klimatförbättrat alternativ) | P5: Skillnad klimatpåverkan % | R5: Skillnad klimatpåverkan [kg Co2-ekv]
A6: Materialtyp | B6: Material | C6: Tjocklek [mm] (Endast asfalt) | D6: Mängd | E6: Enhet | F6: Emissionsfaktor A1-A3 [kg CO2e/kg] | G6: Transportavstånd [km] | H6: Klimatpåverkan [kg CO2e] | I6: Emissionsfaktor A1-A3 [kg CO2e/kg] | J6: Klimatpåverkan [kg CO2e] | K6: Tjocklek [mm] (Endast asfalt) | L6: Mängd | M6: Emissionsfaktor A1-A3 [kg CO2e/kg] | N6: Transportavstånd [km] | O6: Klimatpåverkan [kg CO2e] | P6: Ref alt / gem miljökr. | Q6: Ref alt / klimatförb alt. | R6: Ref alt / gem miljökr. | S6: Ref alt / klimatförb alt.
A7: Betong | B7: Betong Generellt värde (C35/45 samt XD3, XS3 och XF4) | E7: m3 | F7: 0.164 | G7: 35 | H7: =($D$7*Standardvärden!C2*'Förenklad klimatkalkyl'!$F$7)+(Standardvärden!$D$8*'Förenklad klimatkalkyl'!$D$7*G7) -> 0 | I7: 0.132 | J7: =($D7*Standardvärden!$C$2*'Förenklad klimatkalkyl'!$I$7)+(Standardvärden!$D$8*'Förenklad klimatkalkyl'!$D7*$G7) -> 0 | O7: =IF(SUM(L7*M7*N7)=0,"Fyll i värde L-N",($L$7*Standardvärden!C2*'Förenklad klimatkalkyl'!$M$7)+(Standardvärden!$D$8*'Förenklad klimatkalkyl'!$L$7*N7)) -> Fyll i värde L-N | P7: =IFERROR(-(H7-J7)/H7,"") ->  | Q7: =IFERROR(-((H7-O7)/H7),"") ->  | R7: =-(H7-J7) -> 0 | S7: =IFERROR(-(H7-O7),"") -> 
A8: Betong | B8: Betong (C40/50 samt XD3) | E8: m3 | F8: 0.161 | G8: 35 | H8: =($D$8*Standardvärden!C2*'Förenklad klimatkalkyl'!$F$8)+(Standardvärden!$D$8*'Förenklad klimatkalkyl'!$D$8*G8) -> 0 | I8: 0.132 | J8: =($D8*Standardvärden!$C$2*'Förenklad klimatkalkyl'!$I$8)+(Standardvärden!$D$8*'Förenklad klimatkalkyl'!$D8*$G8) -> 0 | O8: =IF(SUM(L8*M8*N8)=0,"Fyll i värde L-N",($L$8*Standardvärden!C2*'Förenklad klimatkalkyl'!$M$8)+(Standardvärden!$D$8*'Förenklad klimatkalkyl'!$L$8*N8)) -> Fyll i värde L-N | R8: =-(H8-J8) -> 0 | S8: =IFERROR(-(H8-O8),"") -> 
A9: Betong | B9: Betong (C32/40 samt XD2, XS2 och XF2) | E9: m3 | F9: 0.151 | G9: 35 | H9: =($D$9*Standardvärden!C2*'Förenklad klimatkalkyl'!$F$9)+(Standardvärden!$D$8*'Förenklad klimatkalkyl'!$D$9*G9) -> 0 | I9: 0.121 | J9: =($D9*Standardvärden!$C$2*'Förenklad klimatkalkyl'!$I$9)+(Standardvärden!$D$8*'Förenklad klimatkalkyl'!$D9*$G9) -> 0 | O9: =IF(SUM(L9*M9*N9)=0,"Fyll i värde L-N",($L$9*Standardvärden!C2*'Förenklad klimatkalkyl'!$M$9)+(Standardvärden!$D$8*'Förenklad klimatkalkyl'!$L$9*N9)) -> Fyll i värde L-N | R9: 0
A10: Anläggningssten | B10: Smågatsten | E10: m | F10: 0.05 | G10: 440 | H10: =IF(E10="m",($D$10*Standardvärden!C36*('Förenklad klimatkalkyl'!$F$10*0.09*0.09))+(Standardvärden!E53*('Förenklad klimatkalkyl'!$D$10*0.09*0.09)*G10),(IF(E10="m2",($D$10*Standardvärden!C36*('Förenklad klimatkalkyl'!$F$10*0.09))+(Standardvärden!E53*('Förenklad klimatkalkyl'!$D$10*0.09)*G10),0))) -> 0 | I10: saknas | J10: =H10 -> 0 | O10: =IF(SUM(L10*M10*N10)=0,"Fyll i värde L-N",IF(E10="m",($L$10*Standardvärden!C36*('Förenklad klimatkalkyl'!$M$10*0.09*0.09))+(Standardvärden!E53*('Förenklad klimatkalkyl'!$L$10*0.09*0.09)*N10),(IF(E10="m2",($L$10*Standardvärden!C36*('Förenklad klimatkalkyl'!$M$10*0.09))+(Standardvärden!E53*('Förenklad klimatkalkyl'!$L$10*0.09)*N10),0)))) -> Fyll i värde L-N | P10: =IFERROR(-(H10-J10)/H10,"") ->  | R10: 0
A11: Anläggningssten | B11: Storgatsten | E11: m2 | F11: 0.05 | G11: 440 | H11: =IF(E11="m",($D$11*Standardvärden!C36*('Förenklad klimatkalkyl'!$F$11*0.14*0.14))+(Standardvärden!E53*('Förenklad klimatkalkyl'!$D$11*0.14*0.14)*G11),(IF(E11="m2",($D$11*Standardvärden!C36*('Förenklad klimatkalkyl'!$F$11*0.14))+(Standardvärden!E53*('Förenklad klimatkalkyl'!$D$11*0.14)*G11),0))) -> 0 | I11: saknas | J11: =H11 -> 0 | O11: =IF(SUM(L11*M11*N11)=0,"Fyll i värde L-N",IF(E11="m",($L$11*Standardvärden!C36*('Förenklad klimatkalkyl'!$M$11*0.14*0.14))+(Standardvärden!E53*('Förenklad klimatkalkyl'!$L$11*0.14*0.14)*N11),(IF(E11="m2",($L$11*Standardvärden!C36*('Förenklad klimatkalkyl'!$M$11*0.14))+(Standardvärden!E53*('Förenklad klimatkalkyl'!$L$11*0.14)*N11),0)))) -> Fyll i värde L-N | R11: 0
A12: Anläggningssten | B12: Naturstensplattor | E12: m2 | F12: 0.05 | G12: 440 | H12: =($D$12*Standardvärden!C36*('Förenklad klimatkalkyl'!$F$12*0.12))+(Standardvärden!E53*('Förenklad klimatkalkyl'!$D$12*0.12)*G12) -> 0 | I12: saknas | J12: =H12 -> 0 | O12: =IF(SUM(L12*M12*N12)=0,"Fyll i värde L-N",($L$12*Standardvärden!C36*('Förenklad klimatkalkyl'!$M$12*0.12))+(Standardvärden!E53*('Förenklad klimatkalkyl'!$L$12*0.12)*N12)) -> Fyll i värde L-N | R12: 0
A13: Anläggningssten | B13: Anläggningssten, generellt värde | E13: m3 | F13: 0.05 | G13: 440 | H13: =($D$13*Standardvärden!C36*'Förenklad klimatkalkyl'!$F$13)+(Standardvärden!E53*'Förenklad klimatkalkyl'!$D$13*G13) -> 0 | I13: saknas | J13: =H13 -> 0 | O13: =IF(SUM(L13*M13*N13)=0,"Fyll i värde L-N",($L$13*Standardvärden!C36*'Förenklad klimatkalkyl'!$M$13)+(Standardvärden!E53*'Förenklad klimatkalkyl'!$L$13*N13)) -> Fyll i värde L-N | R13: 0
A14: Stål | B14: Stål, armering, slakarmering | E14: ton | F14: 0.52 | G14: 840 | H14: =(D14*Standardvärden!$C$11*'Förenklad klimatkalkyl'!F14)+(Standardvärden!$E$32*'Förenklad klimatkalkyl'!D14*G14) -> 0 | I14: 0.52 | J14: =(D14*Standardvärden!$C$11*'Förenklad klimatkalkyl'!I14)+(Standardvärden!$E$32*'Förenklad klimatkalkyl'!D14*G14) -> 0 | O14: =IF(SUM(L14*M14*N14)=0,"Fyll i värde L-N",(L14*Standardvärden!$C$11*'Förenklad klimatkalkyl'!M14)+(Standardvärden!$E$32*'Förenklad klimatkalkyl'!L14*N14)) -> Fyll i värde L-N | R14: 0
A15: Stål | B15: Stål, armering, spännarmering | E15: ton | F15: 1.77 | G15: 840 | H15: =(D15*Standardvärden!$C$11*'Förenklad klimatkalkyl'!F15)+(Standardvärden!$E$32*'Förenklad klimatkalkyl'!D15*G15) -> 0 | I15: saknas | J15: =H15 -> 0 | O15: =IF(SUM(L15*M15*N15)=0,"Fyll i värde L-N",(L15*Standardvärden!$C$11*'Förenklad klimatkalkyl'!M15)+(Standardvärden!$E$32*'Förenklad klimatkalkyl'!L15*N15)) -> Fyll i värde L-N | R15: 0
A16: Stål | B16: Stål, konstruktion, ej varmförzinkat | E16: ton | F16: 2.27 | G16: 1340 | H16: =(D16*Standardvärden!$C$11*'Förenklad klimatkalkyl'!F16)+(Standardvärden!$E$32*'Förenklad klimatkalkyl'!D16*G16) -> 0 | I16: saknas | J16: =H16 -> 0 | O16: =IF(SUM(L16*M16*N16)=0,"Fyll i värde L-N",(L16*Standardvärden!$C$11*'Förenklad klimatkalkyl'!M16)+(Standardvärden!$E$32*'Förenklad klimatkalkyl'!L16*N16)) -> Fyll i värde L-N | R16: 0
A17: Stål | B17: Stål, rostfritt | E17: ton | F17: 3.42 | G17: 1340 | H17: =(D17*Standardvärden!$C$11*'Förenklad klimatkalkyl'!F17)+(Standardvärden!$E$32*'Förenklad klimatkalkyl'!D17*G17) -> 0 | I17: saknas | J17: =H17 -> 0 | O17: =IF(SUM(L17*M17*N17)=0,"Fyll i värde L-N",(L17*Standardvärden!$C$11*'Förenklad klimatkalkyl'!M17)+(Standardvärden!$E$32*'Förenklad klimatkalkyl'!L17*N17)) -> Fyll i värde L-N | R17: 0
A18: Asfalt | B18: Asfalt, Abb (standardtjocklek 50 mm) | C18: 50 | E18: m2 | F18: 0.03 | G18: 50 | H18: =((C18/50)*$D$18*Standardvärden!$J$3*'Förenklad klimatkalkyl'!F18)+(Standardvärden!$M$8*'Förenklad klimatkalkyl'!$D$18*(C18/50)*G18)+($D$18*'Arbetsmoment arbetsplatsen'!D5*'Arbetsmoment arbetsplatsen'!O4) -> 0 | I18: 0.026 | J18: =((C18/50)*$D18*Standardvärden!$J$3*'Förenklad klimatkalkyl'!I18)+(Standardvärden!$M$8*(C18/50)*'Förenklad klimatkalkyl'!$D18*G18)+($D18*'Arbetsmoment arbetsplatsen'!D5*'Arbetsmoment arbetsplatsen'!O11) -> 0 | O18: =IF(SUM(K18*L18*M18*N18)=0,"Fyll i värde K-N",((K18/50)*$L$18*Standardvärden!$J$3*'Förenklad klimatkalkyl'!M18)+(Standardvärden!$M$8*(K18/50)*'Förenklad klimatkalkyl'!$L$18*N18)+($L$18*'Arbetsmoment arbetsplatsen'!D5*'Arbetsmoment arbetsplatsen'!D7)) -> Fyll i värde K-N | Q18: =IFERROR(-((H18-O18)/H18),"") ->  | R18: 0
A19: Asfalt | B19: Asfalt, ABb PMB (standardtjocklek 50 mm) | C19: 50 | E19: m2 | F19: 0.036 | G19: 50 | H19: =((C19/50)*D19*Standardvärden!J3*'Förenklad klimatkalkyl'!F19)+(Standardvärden!M8*'Förenklad klimatkalkyl'!D19*(C19/50)*G19)+($D$19*'Arbetsmoment arbetsplatsen'!D5*'Arbetsmoment arbetsplatsen'!O4) -> 0 | I19: 0.031 | J19: =((C19/50)*$D19*Standardvärden!$J$3*'Förenklad klimatkalkyl'!I19)+(Standardvärden!$M$8*(C19/50)*'Förenklad klimatkalkyl'!$D19*G19)+($D19*'Arbetsmoment arbetsplatsen'!D5*'Arbetsmoment arbetsplatsen'!O11) -> 0 | O19: =IF(SUM(K19*L19*M19*N19)=0,"Fyll i värde K-N",((K19/50)*L19*Standardvärden!J3*'Förenklad klimatkalkyl'!M19)+(Standardvärden!M8*(K19/50)*'Förenklad klimatkalkyl'!L19*N19)+(L19*'Arbetsmoment arbetsplatsen'!D5*'Arbetsmoment arbetsplatsen'!D7)) -> Fyll i värde K-N | R19: 0
A20: Asfalt | B20: Asfalt, ABS (standardtjocklek 40 mm) | C20: 40 | E20: m2 | F20: 0.04 | G20: 50 | H20: =((C20/40)*D20*Standardvärden!J4*'Förenklad klimatkalkyl'!F20)+(Standardvärden!M9*(C20/40)*'Förenklad klimatkalkyl'!D20*G20)+((D20*'Arbetsmoment arbetsplatsen'!D5*'Arbetsmoment arbetsplatsen'!O4)) -> 0 | I20: 0.03 | J20: =((C20/40)*$D20*Standardvärden!$J$4*'Förenklad klimatkalkyl'!I20)+(Standardvärden!$M$9*(C20/40)*'Förenklad klimatkalkyl'!$D20*G20)+($D20*'Arbetsmoment arbetsplatsen'!D5*'Arbetsmoment arbetsplatsen'!O11) -> 0 | O20: =IF(SUM(K20*L20*M20*N20)=0,"Fyll i värde K-N",((K20/40)*L20*Standardvärden!J4*'Förenklad klimatkalkyl'!M20)+(Standardvärden!M9*(K20/40)*'Förenklad klimatkalkyl'!L20*N20)+(L20*'Arbetsmoment arbetsplatsen'!D5*'Arbetsmoment arbetsplatsen'!D7)) -> Fyll i värde K-N | R20: 0
A21: Asfalt | B21: Asfalt, ABS PMB (standardtjocklek 40 mm) | C21: 40 | E21: m2 | F21: 0.045 | G21: 50 | H21: =((C21/40)*D21*Standardvärden!J4*'Förenklad klimatkalkyl'!F21)+(Standardvärden!M9*(C21/40)*'Förenklad klimatkalkyl'!D21*G21)+(D21*'Arbetsmoment arbetsplatsen'!D5*'Arbetsmoment arbetsplatsen'!O4) -> 0 | I21: 0.038 | J21: =((C21/40)*$D21*Standardvärden!$J$4*'Förenklad klimatkalkyl'!I21)+(Standardvärden!$M$9*(C21/40)*'Förenklad klimatkalkyl'!$D21*G21)+($D21*'Arbetsmoment arbetsplatsen'!D5*'Arbetsmoment arbetsplatsen'!O11) -> 0 | O21: =IF(SUM(K21*L21*M21*N21)=0,"Fyll i värde K-N",((K21/40)*L21*Standardvärden!J4*'Förenklad klimatkalkyl'!M21)+(Standardvärden!M9*(K21/40)*'Förenklad klimatkalkyl'!L21*N21)+(L21*'Arbetsmoment arbetsplatsen'!D5*'Arbetsmoment arbetsplatsen'!D7)) -> Fyll i värde K-N | R21: 0
A22: Asfalt | B22: Asfalt, ABT (standardtjocklek 40 mm) | C22: 40 | E22: m2 | F22: 0.034 | G22: 50 | H22: =((C22/40)*D22*Standardvärden!J5*'Förenklad klimatkalkyl'!F22)+(Standardvärden!M10*(C22/40)*'Förenklad klimatkalkyl'!D22*G22)+(D22*'Arbetsmoment arbetsplatsen'!D5*'Arbetsmoment arbetsplatsen'!O4) -> 0 | I22: 0.026 | J22: =((C22/40)*$D22*Standardvärden!$J$5*'Förenklad klimatkalkyl'!I22)+(Standardvärden!$M$10*(C22/40)*'Förenklad klimatkalkyl'!$D22*G22)+($D22*'Arbetsmoment arbetsplatsen'!D5*'Arbetsmoment arbetsplatsen'!O11) -> 0 | O22: =IF(SUM(K22*L22*M22*N22)=0,"Fyll i värde K-N",((K22/40)*L22*Standardvärden!J5*'Förenklad klimatkalkyl'!M22)+(Standardvärden!M10*(K22/40)*'Förenklad klimatkalkyl'!L22*N22)+(L22*'Arbetsmoment arbetsplatsen'!D5*'Arbetsmoment arbetsplatsen'!D7)) -> Fyll i värde K-N | R22: 0
A23: Asfalt | B23: Asfalt, ABT PMB (standardtjocklek 40 mm) | C23: 40 | E23: m2 | F23: 0.04 | G23: 50 | H23: =((C23/40)*D23*Standardvärden!J5*'Förenklad klimatkalkyl'!F23)+(Standardvärden!M10*(C23/40)*'Förenklad klimatkalkyl'!D23*G23)+(D23*'Arbetsmoment arbetsplatsen'!D5*'Arbetsmoment arbetsplatsen'!O4) -> 0 | I23: 0.034 | J23: =((C23/40)*$D23*Standardvärden!$J$5*'Förenklad klimatkalkyl'!I23)+(Standardvärden!$M$10*(C23/40)*'Förenklad klimatkalkyl'!$D23*G23)+($D23*'Arbetsmoment arbetsplatsen'!D5*'Arbetsmoment arbetsplatsen'!O11) -> 0 | O23: =IF(SUM(K23*L23*M23*N23)=0,"Fyll i värde K-N",((K23/40)*L23*Standardvärden!J5*'Förenklad klimatkalkyl'!M23)+(Standardvärden!M10*(K23/40)*'Förenklad klimatkalkyl'!L23*N23)+(L23*'Arbetsmoment arbetsplatsen'!D5*'Arbetsmoment arbetsplatsen'!D7)) -> Fyll i värde K-N | R23: 0
A24: Asfalt | B24: Asfalt, AG (standardtjocklek 60 mm) | C24: 60 | E24: m2 | F24: 0.028 | G24: 50 | H24: =((C24/60)*D24*Standardvärden!J6*'Förenklad klimatkalkyl'!F24)+(Standardvärden!M11*(C24/60)*'Förenklad klimatkalkyl'!D24*G24)+(D24*'Arbetsmoment arbetsplatsen'!D5*'Arbetsmoment arbetsplatsen'!O4) -> 0 | I24: 0.024 | J24: =((C24/60)*$D24*Standardvärden!$J$6*'Förenklad klimatkalkyl'!I24)+(Standardvärden!$M$11*(C24/60)*'Förenklad klimatkalkyl'!$D24*G24)+($D24*'Arbetsmoment arbetsplatsen'!D5*'Arbetsmoment arbetsplatsen'!O11) -> 0 | O24: =IF(SUM(K24*L24*M24*N24)=0,"Fyll i värde K-N",((K24/60)*L24*Standardvärden!J6*'Förenklad klimatkalkyl'!M24)+(Standardvärden!M11*(K24/60)*'Förenklad klimatkalkyl'!L24*N24)+(L24*'Arbetsmoment arbetsplatsen'!D5*'Arbetsmoment arbetsplatsen'!D7)) -> Fyll i värde K-N | R24: 0
A25: Asfalt | B25: Asfalt, AG PMB (standardtjocklek 60 mm) | C25: 60 | E25: m2 | F25: 0.034 | G25: 50 | H25: =((C25/60)*D25*Standardvärden!J6*'Förenklad klimatkalkyl'!F25)+(Standardvärden!M11*(C25/60)*'Förenklad klimatkalkyl'!D25*G25)+(D25*'Arbetsmoment arbetsplatsen'!D5*'Arbetsmoment arbetsplatsen'!O4) -> 0 | I25: 0.031 | J25: =((C25/60)*$D25*Standardvärden!$J$6*'Förenklad klimatkalkyl'!I25)+(Standardvärden!$M$11*(C25/60)*'Förenklad klimatkalkyl'!$D25*G25)+($D25*'Arbetsmoment arbetsplatsen'!D5*'Arbetsmoment arbetsplatsen'!O11) -> 0 | O25: =IF(SUM(K25*L25*M25*N25)=0,"Fyll i värde K-N",((K25/60)*L25*Standardvärden!J6*'Förenklad klimatkalkyl'!M25)+(Standardvärden!M11*(K25/60)*'Förenklad klimatkalkyl'!L25*N25)+(L25*'Arbetsmoment arbetsplatsen'!D5*'Arbetsmoment arbetsplatsen'!D7)) -> Fyll i värde K-N | R25: 0
A26: Asfalt | B26: Asfalt, MJAG (standardtjocklek 50 mm) | C26: 50 | E26: m2 | F26: 0.022 | G26: 50 | H26: =((C26/50)*D26*Standardvärden!J7*'Förenklad klimatkalkyl'!F26)+(Standardvärden!M12*(C26/50)*'Förenklad klimatkalkyl'!D26*G26)+(D26*'Arbetsmoment arbetsplatsen'!D5*'Arbetsmoment arbetsplatsen'!O4) -> 0 | I26: 0.022 | J26: =((C26/50)*$D26*Standardvärden!$J$7*'Förenklad klimatkalkyl'!I26)+(Standardvärden!$M$12*(C26/50)*'Förenklad klimatkalkyl'!$D26*G26)+($D26*'Arbetsmoment arbetsplatsen'!D5*'Arbetsmoment arbetsplatsen'!O11) -> 0 | O26: =IF(SUM(K26*L26*M26*N26)=0,"Fyll i värde K-N",((K26/50)*L26*Standardvärden!J7*'Förenklad klimatkalkyl'!M26)+(Standardvärden!M12*(K26/50)*'Förenklad klimatkalkyl'!L26*N26)+(L26*'Arbetsmoment arbetsplatsen'!D5*'Arbetsmoment arbetsplatsen'!D7)) -> Fyll i värde K-N | P26: =IFERROR(-(H26-J26)/H26,"") ->  | Q26: =IFERROR(-((H26-O26)/H26),"") ->  | R26: 0
A27: Asfalt | B27: Asfalt, MJOG (standardtjocklek 50 mm) | C27: 50 | E27: m2 | F27: 0.022 | G27: 50 | H27: =((C27/50)*D27*Standardvärden!J7*'Förenklad klimatkalkyl'!F27)+(Standardvärden!M12*(C27/50)*'Förenklad klimatkalkyl'!D27*G27)+(D27*'Arbetsmoment arbetsplatsen'!D5*'Arbetsmoment arbetsplatsen'!O4) -> 0 | I27: 0.022 | J27: =((C27/50)*$D27*Standardvärden!$J$7*'Förenklad klimatkalkyl'!I27)+(Standardvärden!$M$12*(C27/50)*'Förenklad klimatkalkyl'!$D27*G27)+($D27*'Arbetsmoment arbetsplatsen'!D5*'Arbetsmoment arbetsplatsen'!O11) -> 0 | O27: =IF(SUM(K27*L27*M27*N27)=0,"Fyll i värde K-N",((K27/50)*L27*Standardvärden!J7*'Förenklad klimatkalkyl'!M27)+(Standardvärden!M12*(K27/50)*'Förenklad klimatkalkyl'!L27*N27)+(L27*'Arbetsmoment arbetsplatsen'!D5*'Arbetsmoment arbetsplatsen'!D7)) -> Fyll i värde K-N | P27: =IFERROR(-(H27-J27)/H27,"") ->  | Q27: =IFERROR(-((H27-O27)/H27),"") ->  | R27: 0
A28: Asfalt | B28: Asfalt, generellt värde | E28: ton | F28: 0.04 | G28: 50 | H28: =($D$28*Standardvärden!$K$25*'Förenklad klimatkalkyl'!$F$28)+(Standardvärden!$M$13*'Förenklad klimatkalkyl'!$D$28*$G$28)+($D$28*'Arbetsmoment arbetsplatsen'!$D$3*'Arbetsmoment arbetsplatsen'!$D$4*'Arbetsmoment arbetsplatsen'!$O$4) -> 0 | I28: saknas | J28: =($D$28*Standardvärden!$K$25*'Förenklad klimatkalkyl'!$F$28)+(Standardvärden!$M$13*'Förenklad klimatkalkyl'!$D$28*$G$28)+($D$28*'Arbetsmoment arbetsplatsen'!$D$3*'Arbetsmoment arbetsplatsen'!$D$4*'Arbetsmoment arbetsplatsen'!O11) -> 0 | O28: =IF(SUM(L28*M28*N28)=0,"Fyll i värde L-N",(L28*Standardvärden!K25*'Förenklad klimatkalkyl'!M28)+(Standardvärden!M13*'Förenklad klimatkalkyl'!L28*N28)+(L28*'Arbetsmoment arbetsplatsen'!D3*'Arbetsmoment arbetsplatsen'!D4*'Arbetsmoment arbetsplatsen'!D7)) -> Fyll i värde L-N | R28: 0
A29: Ledning av plaströr | B29: Ledning av plaströr, dränrör dim 200 | E29: m | F29: 1.8 | G29: 540 | H29: =(D29*Standardvärden!$K$30*F29)+(D29*G29*Standardvärden!$N$50) -> 0 | I29: saknas | J29: =H29 -> 0 | O29: =IF(SUM(L29*M29*N29)=0,"Fyll i värde L-N",(L29*Standardvärden!$K$30*M29)+(L29*N29*Standardvärden!$N$50)) -> Fyll i värde L-N | R29: 0
A30: Ledning av plaströr | B30: Ledning av plaströr, markavloppsrör dim 225 | E30: m | F30: 1.8 | G30: 540 | H30: =(D30*Standardvärden!$K$31*F30)+(D30*G30*Standardvärden!$O$50) -> 0 | I30: saknas | J30: =H30 -> 0 | O30: =IF(SUM(L30*M30*N30)=0,"Fyll i värde L-N",(L30*Standardvärden!$K$31*M30)+(L30*N30*Standardvärden!$O$50)) -> Fyll i värde L-N | R30: 0
A31: Bergmassor | B31: Berg Fall A, fyll | E31: m3 | F31: - | G31: - | H31: =($D$31*'Arbetsmoment arbetsplatsen'!$D$13*'Arbetsmoment arbetsplatsen'!$D$14*'Arbetsmoment arbetsplatsen'!$O$4)+($D$31*'Arbetsmoment arbetsplatsen'!$D$9*'Arbetsmoment arbetsplatsen'!$O$4)+($D$31*'Arbetsmoment arbetsplatsen'!$K$25*'Arbetsmoment arbetsplatsen'!$K$21*'Arbetsmoment arbetsplatsen'!J14*'Arbetsmoment arbetsplatsen'!$J$11*'Arbetsmoment arbetsplatsen'!$O$4*'Arbetsmoment arbetsplatsen'!$J$19) -> 0 | I31: A1-A3 saknas men drivmedelskrav finns | J31: =($D$31*'Arbetsmoment arbetsplatsen'!$D$13*'Arbetsmoment arbetsplatsen'!$D$14*'Arbetsmoment arbetsplatsen'!O11)+($D$31*'Arbetsmoment arbetsplatsen'!$D$9*'Arbetsmoment arbetsplatsen'!O11)+($D$31*'Arbetsmoment arbetsplatsen'!$K$25*'Arbetsmoment arbetsplatsen'!$K$21*'Arbetsmoment arbetsplatsen'!J14*'Arbetsmoment arbetsplatsen'!$J$11*'Arbetsmoment arbetsplatsen'!O11*'Arbetsmoment arbetsplatsen'!$J$19) -> 0 | M31: - | N31: - | O31: =IF(SUM(L31)=0,"Fyll i värde L",(L31*'Arbetsmoment arbetsplatsen'!$D$13*'Arbetsmoment arbetsplatsen'!$D$14*'Arbetsmoment arbetsplatsen'!J13)+(L31*'Arbetsmoment arbetsplatsen'!$D$9*'Arbetsmoment arbetsplatsen'!J13)+(L31*'Arbetsmoment arbetsplatsen'!$K$25*'Arbetsmoment arbetsplatsen'!$K$21*'Arbetsmoment arbetsplatsen'!J16*'Arbetsmoment arbetsplatsen'!$J$11*'Arbetsmoment arbetsplatsen'!J13*'Arbetsmoment arbetsplatsen'!$J$19)) -> Fyll i värde L | R31: 0
A32: Bergmassor | B32: Berg Fall B, fyll | E32: m3 | F32: 0.003 | G32: - | H32: =($D$32*'Arbetsmoment arbetsplatsen'!$K$25*$F$32)+($D$32*'Arbetsmoment arbetsplatsen'!$K$25*'Arbetsmoment arbetsplatsen'!$K$21*'Arbetsmoment arbetsplatsen'!J5*'Arbetsmoment arbetsplatsen'!$J$2*'Arbetsmoment arbetsplatsen'!$O$4*'Arbetsmoment arbetsplatsen'!$J$19)+($D$32*'Arbetsmoment arbetsplatsen'!$D$9*'Arbetsmoment arbetsplatsen'!$O$4) -> 0 | I32: A1-A3 saknas men drivmedelskrav finns | J32: =($D$32*'Arbetsmoment arbetsplatsen'!$K$25*$F$32)+($D$32*'Arbetsmoment arbetsplatsen'!$K$25*'Arbetsmoment arbetsplatsen'!$K$21*'Arbetsmoment arbetsplatsen'!J5*'Arbetsmoment arbetsplatsen'!$J$2*'Arbetsmoment arbetsplatsen'!$O$11*'Arbetsmoment arbetsplatsen'!$J$19)+($D$32*'Arbetsmoment arbetsplatsen'!$D$9*'Arbetsmoment arbetsplatsen'!O11) -> 0 | N32: - | O32: =IF(SUM(L32*M32)=0,"Fyll i värde L-M",(L32*'Arbetsmoment arbetsplatsen'!$K$25*M32)+(L32*'Arbetsmoment arbetsplatsen'!$K$25*'Arbetsmoment arbetsplatsen'!$K$21*'Arbetsmoment arbetsplatsen'!J6*'Arbetsmoment arbetsplatsen'!$J$2*'Arbetsmoment arbetsplatsen'!J4*'Arbetsmoment arbetsplatsen'!$J$19)+(L32*'Arbetsmoment arbetsplatsen'!$D$9*'Arbetsmoment arbetsplatsen'!D11)) -> Fyll i värde L-M | R32: 0
A33: Bergmassor | B33: Bergschakt fall A | E33: m3 | F33: 1.32 | G33: 500 | H33: =($D$33*'Arbetsmoment arbetsplatsen'!$D$18*'Arbetsmoment arbetsplatsen'!$D$19*'Arbetsmoment arbetsplatsen'!$O$4)+($D$33*'Arbetsmoment arbetsplatsen'!$K$26*'Arbetsmoment arbetsplatsen'!$K$21*'Arbetsmoment arbetsplatsen'!$J$14*'Arbetsmoment arbetsplatsen'!$J$11*'Arbetsmoment arbetsplatsen'!$O$4*'Arbetsmoment arbetsplatsen'!$J$19)+($D$33*'Arbetsmoment arbetsplatsen'!$D$9*'Arbetsmoment arbetsplatsen'!$K$27*'Arbetsmoment arbetsplatsen'!$O$4)+($D$33*'Arbetsmoment arbetsplatsen'!$K$28*'Förenklad klimatkalkyl'!$F$33)+($D$33*'Arbetsmoment arbetsplatsen'!$K$28*'Arbetsmoment arbetsplatsen'!$K$21*$G$33*'Arbetsmoment arbetsplatsen'!$K$29*'Arbetsmoment arbetsplatsen'!$O$4*'Arbetsmoment arbetsplatsen'!$J$19) -> 0 | I33: A1-A3 saknas men drivmedelskrav finns | J33: =($D$33*'Arbetsmoment arbetsplatsen'!$D$18*'Arbetsmoment arbetsplatsen'!$D$19*'Arbetsmoment arbetsplatsen'!O11)+($D$33*'Arbetsmoment arbetsplatsen'!$K$26*'Arbetsmoment arbetsplatsen'!$K$21*'Arbetsmoment arbetsplatsen'!$J$14*'Arbetsmoment arbetsplatsen'!$J$11*'Arbetsmoment arbetsplatsen'!O11*'Arbetsmoment arbetsplatsen'!$J$19)+($D$33*'Arbetsmoment arbetsplatsen'!$D$9*'Arbetsmoment arbetsplatsen'!$K$27*'Arbetsmoment arbetsplatsen'!O11)+($D$33*'Arbetsmoment arbetsplatsen'!$K$28*$F$33)+($D$33*'Arbetsmoment arbetsplatsen'!$K$28*'Arbetsmoment arbetsplatsen'!$K$21*$G$33*'Arbetsmoment arbetsplatsen'!$K$29*'Arbetsmoment arbetsplatsen'!$O$4*'Arbetsmoment arbetsplatsen'!$J$19) -> 0 | O33: =IF(SUM(L33*M33*N33)=0,"Fyll i värde L-N",($L$33*'Arbetsmoment arbetsplatsen'!$D$18*'Arbetsmoment arbetsplatsen'!$D$19*'Arbetsmoment arbetsplatsen'!D21)+($L$33*'Arbetsmoment arbetsplatsen'!$K$26*'Arbetsmoment arbetsplatsen'!$K$21*'Arbetsmoment arbetsplatsen'!$J$15*'Arbetsmoment arbetsplatsen'!$J$11*'Arbetsmoment arbetsplatsen'!J13*'Arbetsmoment arbetsplatsen'!$J$19)+($L$33*'Arbetsmoment arbetsplatsen'!$D$9*'Arbetsmoment arbetsplatsen'!$K$27*'Arbetsmoment arbetsplatsen'!D11)+($L$33*'Arbetsmoment arbetsplatsen'!$K$28*'Förenklad klimatkalkyl'!$M$33)+($L$33*'Arbetsmoment arbetsplatsen'!$K$28*'Arbetsmoment arbetsplatsen'!$K$21*$N$33*'Arbetsmoment arbetsplatsen'!$K$29*'Arbetsmoment arbetsplatsen'!$O$4*'Arbetsmoment arbetsplatsen'!$J$19)) -> Fyll i värde L-N | R33: 0
A34: Bergmassor | B34: Bergschakt fall B | E34: m3 | F34: 1.32 | G34: 500 | H34: =($D$34*'Arbetsmoment arbetsplatsen'!$K$26*'Arbetsmoment arbetsplatsen'!$K$21*'Arbetsmoment arbetsplatsen'!$J$5*'Arbetsmoment arbetsplatsen'!$K$27*'Arbetsmoment arbetsplatsen'!$O$4*'Arbetsmoment arbetsplatsen'!$J$19)+($D$34*'Arbetsmoment arbetsplatsen'!$D$9*'Arbetsmoment arbetsplatsen'!$K$27*'Arbetsmoment arbetsplatsen'!$O$4)+($D$34*'Arbetsmoment arbetsplatsen'!$D$18*'Arbetsmoment arbetsplatsen'!$D$19*'Arbetsmoment arbetsplatsen'!$O$4)+($D$34*'Arbetsmoment arbetsplatsen'!$K$28*$F$34)+($D$34*'Arbetsmoment arbetsplatsen'!$K$28*'Arbetsmoment arbetsplatsen'!$K$21*'Förenklad klimatkalkyl'!$G$34*'Arbetsmoment arbetsplatsen'!$K$29*'Arbetsmoment arbetsplatsen'!$O$4*'Arbetsmoment arbetsplatsen'!$J$19) -> 0 | I34: A1-A3 saknas men drivmedelskrav finns | J34: =($D$34*'Arbetsmoment arbetsplatsen'!$K$26*'Arbetsmoment arbetsplatsen'!$K$21*'Arbetsmoment arbetsplatsen'!J5*'Arbetsmoment arbetsplatsen'!$K$27*'Arbetsmoment arbetsplatsen'!$O$11*'Arbetsmoment arbetsplatsen'!$J$19)+($D$34*'Arbetsmoment arbetsplatsen'!$D$9*'Arbetsmoment arbetsplatsen'!$K$27*'Arbetsmoment arbetsplatsen'!O11)+($D$34*'Arbetsmoment arbetsplatsen'!$D$18*'Arbetsmoment arbetsplatsen'!$D$19*'Arbetsmoment arbetsplatsen'!O11)+($D$34*'Arbetsmoment arbetsplatsen'!$K$28*$F$34)+($D$34*'Arbetsmoment arbetsplatsen'!$K$28*'Arbetsmoment arbetsplatsen'!$K$21*'Förenklad klimatkalkyl'!$G$34*'Arbetsmoment arbetsplatsen'!$K$29*'Arbetsmoment arbetsplatsen'!$O$4*'Arbetsmoment arbetsplatsen'!$J$19) -> 0 | O34: =IF(SUM(L34*M34*N34)=0,"Fyll i värde L-N",($L$34*'Arbetsmoment arbetsplatsen'!$K$26*'Arbetsmoment arbetsplatsen'!$K$21*'Arbetsmoment arbetsplatsen'!$J$5*'Arbetsmoment arbetsplatsen'!$K$27*'Arbetsmoment arbetsplatsen'!$J$4*'Arbetsmoment arbetsplatsen'!$J$19)+($L$34*'Arbetsmoment arbetsplatsen'!$D$9*'Arbetsmoment arbetsplatsen'!$K$27*'Arbetsmoment arbetsplatsen'!D11)+($L$34*'Arbetsmoment arbetsplatsen'!$D$18*'Arbetsmoment arbetsplatsen'!$D$19*'Arbetsmoment arbetsplatsen'!D21)+($L$34*'Arbetsmoment arbetsplatsen'!$K$28*$M$34)+($L$34*'Arbetsmoment arbetsplatsen'!$K$28*'Arbetsmoment arbetsplatsen'!$K$21*N34*'Arbetsmoment arbetsplatsen'!$K$29*'Arbetsmoment arbetsplatsen'!$O$4*'Arbetsmoment arbetsplatsen'!$J$19)) -> Fyll i värde L-N | R34: 0
A35: Jordmassor | B35: Jord Fall A, fyll | E35: m3 | F35: - | G35: - | H35: =($D$35*'Arbetsmoment arbetsplatsen'!$D$9*'Arbetsmoment arbetsplatsen'!$O$4)+($D$35*'Arbetsmoment arbetsplatsen'!$K$24*'Arbetsmoment arbetsplatsen'!$K$21*'Arbetsmoment arbetsplatsen'!J14*'Arbetsmoment arbetsplatsen'!$J$11*'Arbetsmoment arbetsplatsen'!$O$4*'Arbetsmoment arbetsplatsen'!$J$19) -> 0 | I35: A1-A3 saknas men drivmedelskrav finns | J35: =($D$35*'Arbetsmoment arbetsplatsen'!$D$9*'Arbetsmoment arbetsplatsen'!O11)+($D$35*'Arbetsmoment arbetsplatsen'!$K$24*'Arbetsmoment arbetsplatsen'!$K$21*'Arbetsmoment arbetsplatsen'!J14*'Arbetsmoment arbetsplatsen'!$J$11*'Arbetsmoment arbetsplatsen'!O11*'Arbetsmoment arbetsplatsen'!$J$19) -> 0 | M35: - | N35: - | O35: =IF(SUM(L35)=0,"Fyll i värde L",($L$35*'Arbetsmoment arbetsplatsen'!$D$9*'Arbetsmoment arbetsplatsen'!J13)+($L$35*'Arbetsmoment arbetsplatsen'!$K$24*'Arbetsmoment arbetsplatsen'!$K$21*'Arbetsmoment arbetsplatsen'!J18*'Arbetsmoment arbetsplatsen'!$J$11*'Arbetsmoment arbetsplatsen'!J13*'Arbetsmoment arbetsplatsen'!$J$19)) -> Fyll i värde L | R35: 0
A36: Jordmassor | B36: Jord Fall B, fyll | E36: m3 | F36: 0.0003 | G36: - | H36: =($D$36*'Arbetsmoment arbetsplatsen'!$D$9*'Arbetsmoment arbetsplatsen'!$O$4)+($D$36*'Arbetsmoment arbetsplatsen'!$K$24*$F$36)+($D$36*'Arbetsmoment arbetsplatsen'!$K$24*'Arbetsmoment arbetsplatsen'!$K$21*'Arbetsmoment arbetsplatsen'!J5*'Arbetsmoment arbetsplatsen'!$J$2*'Arbetsmoment arbetsplatsen'!$O$4*'Arbetsmoment arbetsplatsen'!$J$19) -> 0 | I36: A1-A3 saknas men drivmedelskrav finns | J36: =($D$36*'Arbetsmoment arbetsplatsen'!$D$9*'Arbetsmoment arbetsplatsen'!O11)+($D$36*'Arbetsmoment arbetsplatsen'!$K$24*$F$36)+($D$36*'Arbetsmoment arbetsplatsen'!$K$24*'Arbetsmoment arbetsplatsen'!$K$21*'Arbetsmoment arbetsplatsen'!J5*'Arbetsmoment arbetsplatsen'!$J$2*'Arbetsmoment arbetsplatsen'!$O$11*'Arbetsmoment arbetsplatsen'!$J$19) -> 0 | N36: - | O36: =IF(SUM(L36*M36)=0,"Fyll i värde L-M",($L$36*'Arbetsmoment arbetsplatsen'!$D$9*'Arbetsmoment arbetsplatsen'!D11)+($L$36*'Arbetsmoment arbetsplatsen'!$K$24*$M$36)+($L$36*'Arbetsmoment arbetsplatsen'!$K$24*'Arbetsmoment arbetsplatsen'!$K$21*'Arbetsmoment arbetsplatsen'!J9*'Arbetsmoment arbetsplatsen'!$J$2*'Arbetsmoment arbetsplatsen'!$J$4*'Arbetsmoment arbetsplatsen'!$J$19)) -> Fyll i värde L-M | R36: 0
A37: Jordmassor | B37: Jordschakt Fall A | E37: m3 | F37: - | G37: - | H37: =($D$37*'Arbetsmoment arbetsplatsen'!$D$9*'Arbetsmoment arbetsplatsen'!$O$4)+($D$37*'Arbetsmoment arbetsplatsen'!$K$24*'Arbetsmoment arbetsplatsen'!$K$21*'Arbetsmoment arbetsplatsen'!J14*'Arbetsmoment arbetsplatsen'!$J$11*'Arbetsmoment arbetsplatsen'!$O$4*'Arbetsmoment arbetsplatsen'!$J$19)+($D$37*'Arbetsmoment arbetsplatsen'!$D$23*'Arbetsmoment arbetsplatsen'!$D$24*'Arbetsmoment arbetsplatsen'!$O$4) -> 0 | I37: A1-A3 saknas men drivmedelskrav finns | J37: =($D$37*'Arbetsmoment arbetsplatsen'!$D$9*'Arbetsmoment arbetsplatsen'!O11)+($D$37*'Arbetsmoment arbetsplatsen'!$K$24*'Arbetsmoment arbetsplatsen'!$K$21*'Arbetsmoment arbetsplatsen'!J14*'Arbetsmoment arbetsplatsen'!$J$11*'Arbetsmoment arbetsplatsen'!O11*'Arbetsmoment arbetsplatsen'!$J$19)+($D$37*'Arbetsmoment arbetsplatsen'!$D$23*'Arbetsmoment arbetsplatsen'!$D$24*'Arbetsmoment arbetsplatsen'!O11) -> 0 | M37: - | N37: - | O37: =IF(SUM(L37)=0,"Fyll i värde L",($L$37*'Arbetsmoment arbetsplatsen'!$D$9*'Arbetsmoment arbetsplatsen'!D11)+($L$37*'Arbetsmoment arbetsplatsen'!$K$24*'Arbetsmoment arbetsplatsen'!$K$21*'Arbetsmoment arbetsplatsen'!J17*'Arbetsmoment arbetsplatsen'!$J$11*'Arbetsmoment arbetsplatsen'!J13*'Arbetsmoment arbetsplatsen'!$J$19)+($L$37*'Arbetsmoment arbetsplatsen'!$D$23*'Arbetsmoment arbetsplatsen'!$D$24*'Arbetsmoment arbetsplatsen'!D26)) -> Fyll i värde L | R37: 0
A38: Jordmassor | B38: Jordschakt Fall B | E38: m3 | F38: - | G38: - | H38: =($D$38*'Arbetsmoment arbetsplatsen'!$D$9*'Arbetsmoment arbetsplatsen'!$O$4)+($D$38*'Arbetsmoment arbetsplatsen'!$K$24*'Arbetsmoment arbetsplatsen'!$K$21*'Arbetsmoment arbetsplatsen'!J5*'Arbetsmoment arbetsplatsen'!$J$2*'Arbetsmoment arbetsplatsen'!$O$4*'Arbetsmoment arbetsplatsen'!$J$19)+($D$38*'Arbetsmoment arbetsplatsen'!$D$23*'Arbetsmoment arbetsplatsen'!$D$24*'Arbetsmoment arbetsplatsen'!$O$4) -> 0 | I38: A1-A3 saknas men drivmedelskrav finns | J38: =($D$38*'Arbetsmoment arbetsplatsen'!$D$9*'Arbetsmoment arbetsplatsen'!O11)+($D$38*'Arbetsmoment arbetsplatsen'!$K$24*'Arbetsmoment arbetsplatsen'!$K$21*'Arbetsmoment arbetsplatsen'!J5*'Arbetsmoment arbetsplatsen'!$J$2*'Arbetsmoment arbetsplatsen'!$O$11*'Arbetsmoment arbetsplatsen'!$J$19)+($D$38*'Arbetsmoment arbetsplatsen'!$D$23*'Arbetsmoment arbetsplatsen'!$D$24*'Arbetsmoment arbetsplatsen'!O11) -> 0 | M38: - | N38: - | O38: =IF(SUM(L38)=0,"Fyll i värde L",($L$38*'Arbetsmoment arbetsplatsen'!$D$9*'Arbetsmoment arbetsplatsen'!D11)+($L$38*'Arbetsmoment arbetsplatsen'!$K$24*'Arbetsmoment arbetsplatsen'!$K$21*'Arbetsmoment arbetsplatsen'!J8*'Arbetsmoment arbetsplatsen'!$J$2*'Arbetsmoment arbetsplatsen'!$J$4*'Arbetsmoment arbetsplatsen'!$J$19)+($L$38*'Arbetsmoment arbetsplatsen'!$D$23*'Arbetsmoment arbetsplatsen'!$D$24*'Arbetsmoment arbetsplatsen'!D26)) -> Fyll i värde L | R38: 0
G39: Total | H39: =SUM(H7:H38) -> 0 | I39: Total | J39: =SUM(J7:J38) -> 0 | N39: Total | O39: =IF(SUM(O7:O38)=0,"",SUM(O7:O38)) ->  | Q39: =IFERROR(-(H39-O39)/H39,"") ->  | R39: 0 | S39: =IFERROR(-(H39-O39),"") -> 

Sheet Arbetsmoment arbetsplatsen
A1: Asfaltsutläggning | G1: Lastbil regiontransport för fall B massor | N1: Emmisionsfaktorer alternativa drivmedel | O1: kg CO2e/l dieselekvivalenter
A2: Antal utläggningar m2 | D2: 1 | E2: st/m2 | G2: Dieselförbrukning | J2: 1.5 | K2: MJ/tkm | N2: Drivmedel | O2: Emissionsfaktor
A3: Antal utläggningar ton | D3: 7.4 | E3: st/ton | G3: Drivmedel klimatförbättrat alt. | J3: Gemensamma miljökrav | N3: Biogas | O3: 0.6
A4: Dieselförbrukning | D4: 0.0964 | E4: l/st | G4: Emissionsfaktor drivmedel | J4: =VLOOKUP(J3,N3:O16,2) -> 1.113 | K4: kg CO2e/l | N4: Diesel | O4: 2.8
A5: Diesel ekv per m2 | D5: =D2*D4 -> 0.0964 | E5: l/m2 | G5: Transportlängd fall B schablon | J5: 30 | K5: km | N5: E85 | O5: 1.72
A6: Drivmedel klimatförbättrat alt. | D6: Gemensamma miljökrav | G6: Just. transportlängd Bergschakt | J6: 30 | K6: km | N6: ED95 | O6: 1
A7: Emissionsfaktor drivmedel | D7: =VLOOKUP(D6,N3:O15,2) -> 1.113 | E7: kg CO2e/l | G7: Just. transportlängd Berg Fyll | J7: 30 | K7: km | N7: El (residual) | O7: 0.19
A8: Grävmaskin | G8: Just. transportlängd Jordschakt | J8: 30 | K8: km | N8: El (ursprungsmärkt förnybar) | O8: 0.04
A9: Dieselförbrukning | D9: 0.1861130995 | E9: l/m3 | G9: Just. transportlängd Jord fyll | J9: 30 | K9: km | N9: FAME | O9: 1.1
A10: Drivmedel klimatförbättrat alt. | D10: Gemensamma miljökrav | H10: Dumper Fall A massor | N10: Fordonsgas | O10: 0.89
A11: Emissionsfaktor drivmedel | D11: =VLOOKUP(D10,N3:O15,2) -> 1.113 | E11: kg CO2e/l | G11: Dieselförbrukning | J11: 6.27 | K11: MJ/tkm | N11: Gemensamma miljökrav | O11: =VLOOKUP(Projektinformation!C4,'Arbetsmoment arbetsplatsen'!N19:P26,3) -> 1.113
A12: Krossning mobilt verk | G12: Drivmedel klimatförbättrat alt. | J12: Gemensamma miljökrav | N12: HVO 100 | O12: 0.39
A13: Energiåtgång krossning | D13: 71.08208228 | E13: MJ/m3 | G13: Emissionsfaktor drivmedel | J13: =VLOOKUP(J12,N3:O16,2) -> 1.113 | K13: kg CO2e/l | N13: LNG/LBG | O13: 3.48
A14: Inverterat värmevärde Diesel | D14: 0.028345 | E14: l/MJ | G14: Transportlängd fall A schablon | J14: 2 | K14: km | N14: Vätgas i bränslecell (förnybar från biomassa) | O14: 1.12
A15: Drivmedel klimatförbättrat alt. | D15: Gemensamma miljökrav | G15: Just. Transportlängd Bergschakt | J15: 2 | K15: km | N15: Vätgas i bränslecell (Förnybar från vindkraft) | O15: 0.22
A16: Emissionsfaktor drivmedel | D16: =VLOOKUP(D15,N3:O15,2) -> 1.113 | E16: kg CO2e/l | G16: Just. Transportlängd Berg fyll | J16: 2 | K16: km | N16: Vätgas i bränslecell (icke förnybar, från naturgasreformering) | O16: 2.68
A17: Borrning | G17: Just. Transportlängd Jordschakt | J17: 2 | K17: km
A18: Energiåtgång borrning | D18: 2.5 | E18: MJ/m3 | G18: Just. Transportlängd Jord fyll | J18: 2 | K18: km | N18: Gemensamma miljökrav andel förnybara drivmedel, Antagande HVO som förnybart drivmedel
A19: Inverterat värmevärde Diesel | D19: 0.028345 | E19: l/MJ | G19: Inverterat värmevärde Diesel | J19: 0.028345 | K19: l/MJ | N19: Årtal | O19: Andel | P19: Motsv emmisionsfaktor
A20: Drivmedel klimatförbättrat alt. | D20: Gemensamma miljökrav | N20: 2024 | O20: 0.5 | P20: =(O20*$O$12)+((1-O20)*$O$4) -> 1.595
A21: Emissionsfaktor drivmedel | D21: =VLOOKUP(D20,N3:O15,2) -> 1.113 | E21: kg CO2e/l | I21: kg-> ton | K21: 0.001 | N21: 2025 | O21: 0.5 | P21: 1.595
A22: Pumpning under byggtid | N22: 2026 | O22: 0.7 | P22: 1.113
A23: Energiåtgång pumpning | D23: 0.3 | E23: MJ/m3 | N23: 2027 | O23: 0.7 | P23: 1.113
A24: Inverterat värmevärde Diesel | D24: 0.028345 | E24: l/MJ | G24: Densitet Jord | I24: kg/m3 | K24: 1600 | N24: 2028 | O24: 0.9 | P24: 0.631
A25: Drivmedel klimatförbättrat alt. | D25: Gemensamma miljökrav | G25: Densitet Bergkross | I25: kg/m3 | K25: 1800 | N25: 2029 | O25: 0.9 | P25: 0.631
A26: Emissionsfaktor drivmedel | D26: =VLOOKUP(D25,N3:O15,2) -> 1.113 | E26: kg CO2e/l | G26: Densitet fast berg | I26: kg/m3 | K26: 2700 | N26: 2030 | O26: 1 | P26: 0.39
G27: Svällfaktor bergschakt | I27: m3/m3 | K27: 1.5
G28: Sprängmedel åtgång | I28: kg/m3 | K28: 0.5
G29: Lastbil landsväg | I29: MJ/tkm | K29: 1

Sheet Resultat
B1: Andel av totala Klimatpåverkan [kg CO2e] som respektive matrialtyp står för i de olika alternativen
B3: Referenskalkyl
J5: Materialtyp | K5: Andel av totala Klimatpåverkan [kg CO2e] för respektive matrialtyp
J6: Anläggningssten
J7: Asfalt
J8: Bergmassor
J9: Betong
J10: Jordmassor
J11: Ledning av plaströr
J12: Stål
J13: Totalsumma
B20: Med gemensamma miljökrav
J21: Materialtyp | K21: Andel av totala Klimatpåverkan [kg CO2e] för respektive matrialtyp
J22: Anläggningssten
J23: Asfalt
J24: Bergmassor
J25: Betong
J26: Jordmassor
J27: Ledning av plaströr
J28: Stål
J29: Totalsumma
B37: Klimatförbättrat alternativ
J38: Materialtyp | K38: Andel av totala Klimatpåverkan [kg CO2e] för respektive matrialtyp
J39: Anläggningssten
J40: Asfalt
J41: Bergmassor
J42: Betong
J43: Jordmassor
J44: Ledning av plaströr
J45: Stål
J46: Totalsumma
B55: Jämförelse av klimatpåverkan [kg CO2e] för respektive alternativ och materialtyp
J56: Materialtyp | K56: Referenskalkyl | L56: Med gemensamma miljökrav | M56: Utgångsläge entreprenad
J57: Anläggningssten | K57: 0 | L57: 0 | M57: 0
J58: Asfalt | K58: 0 | L58: 0 | M58: 0
J59: Bergmassor | K59: 0 | L59: 0 | M59: 0
J60: Betong | K60: 0 | L60: 0 | M60: 0
J61: Jordmassor | K61: 0 | L61: 0 | M61: 0
J62: Ledning av plaströr | K62: 0 | L62: 0 | M62: 0
J63: Stål | K63: 0 | L63: 0 | M63: 0
J64: Totalsumma | K64: 0 | L64: 0 | M64: 0

Sheet Resultat per materialtyp
B1: Jämförelse av klimatpåverkan [kg CO2e] per materialtyp för respektive alternativ
I3: Materialtyp | J3: Referenskalkyl | K3: Med gemensamma miljökrav | L3: Utgångsläge entreprenad
I4: Anläggningssten | J4: 0 | K4: 0 | L4: 0
I5: Totalsumma | J5: 0 | K5: 0 | L5: 0
I19: Materialtyp | J19: Referenskalkyl | K19: Med gemensamma miljökrav | L19: Utgångsläge entreprenad
I20: Asfalt | J20: 0 | K20: 0 | L20: 0
I21: Totalsumma | J21: 0 | K21: 0 | L21: 0
I35: Materialtyp | J35: Referenskalkyl | K35: Med gemensamma miljökrav | L35: Utgångsläge entreprenad
I36: Bergmassor | J36: 0 | K36: 0 | L36: 0
I37: Totalsumma | J37: 0 | K37: 0 | L37: 0
I51: Materialtyp | J51: Referenskalkyl | K51: Med gemensamma miljökrav | L51: Utgångsläge entreprenad
I52: Betong | J52: 0 | K52: 0 | L52: 0
I53: Totalsumma | J53: 0 | K53: 0 | L53: 0
I67: Materialtyp | J67: Referenskalkyl | K67: Med gemensamma miljökrav | L67: Utgångsläge entreprenad
I68: Jordmassor | J68: 0 | K68: 0 | L68: 0
I69: Totalsumma | J69: 0 | K69: 0 | L69: 0
I83: Materialtyp | J83: Referenskalkyl | K83: Med gemensamma miljökrav | L83: Utgångsläge entreprenad
I84: Ledning av plaströr | J84: 0 | K84: 0 | L84: 0
I85: Totalsumma | J85: 0 | K85: 0 | L85: 0
I99: Materialtyp | J99: Referenskalkyl | K99: Med gemensamma miljökrav | L99: Utgångsläge entreprenad
I100: Stål | J100: 0 | K100: 0 | L100: 0
I101: Totalsumma | J101: 0 | K101: 0 | L101: 0

Sheet Standardvärden
B1: Betong | I1: Asfalt
B2: kg -> m3 | C2: 2350 | J2: Densitet
B3: MJ/tkm | C3: 2.5 | I3: Abb | J3: 112.15
B4: kg CO2e/l | C4: 2.8 | I4: ABS | J4: 89.72
B5: l/MJ | C5: 0.028345 | I5: ABT | J5: 89.72
B6: kg -> ton | C6: 0.001 | I6: AG | J6: 134.58
A7: för 1 km | B7: Omräkning kg CO2/m3 | D7: =(1*1*Standardvärden!C2*Standardvärden!C6*C3*C4*C5) -> 0.46627525 | I7: MJAG/MJOG | J7: 112.15
A8: för 1 km | B8: Summa transport kg CO2/m3 | D8: =D7 -> 0.46627525 | I8: ABb | J8: Omräkning kg CO2/m3 | M8: =(Standardvärden!K20*Standardvärden!$M$15*Standardvärden!$M$16*Standardvärden!$M$18) -> 0.01335134535 | P8: för 1 km
I9: ABS | J9: Omräkning kg CO2/m3 | M9: =(Standardvärden!K21*Standardvärden!$M$15*Standardvärden!$M$16*Standardvärden!$M$18) -> 0.01068107628
B10: Stål | I10: ABT | J10: Omräkning kg CO2/m3 | M10: =(Standardvärden!K22*Standardvärden!$M$15*Standardvärden!$M$16*Standardvärden!$M$18) -> 0.01068107628
B11: kg -> ton | C11: 1000 | I11: AG | J11: Omräkning kg CO2/m3 | M11: =(Standardvärden!K23*Standardvärden!$M$15*Standardvärden!$M$16*Standardvärden!$M$18) -> 0.01602161442
B12: Lastbil Landsväg | D12: 300 | I12: MJAG/MJOG | J12: Omräkning kg CO2/m3 | M12: =(Standardvärden!K24*Standardvärden!$M$15*Standardvärden!$M$16*Standardvärden!$M$18) -> 0.01335134535
B13: Lastbil närdistr. | D13: 40 | I13: Generellt | J13: Omräkning kg CO2/m3 | M13: =(Standardvärden!$M$15*Standardvärden!$M$16*Standardvärden!$M$18) -> 0.119049
B14: Järnväg | D14: 500
B15: Omräkningar transport landsväg | L15: MJ/tkm | M15: 1.5
B16: MJ/tkm | C16: 1 | L16: kg CO2e/l | M16: 2.8
B17: kg CO2e/l | C17: 2.8 | L17: MJ/l | M17: 43.3
B18: MJ/l | C18: 43.3 | I18: Inverterat värmevärde | L18: l/MJ | M18: 0.028345
B19: Inverterat värmevärde | E19: l/MJ | F19: 0.028345 | J19: Omvandlingsfaktorer
B20: Omräkning kg CO2/ton | E20: =(C16*C17*F19) -> 0.079366 | G20: för 1 km | I20: Abb | J20: m2 -> ton | K20: =K26*Standardvärden!J3 -> 0.11215
B21: Omräkningar transport närdistr. | I21: ABS | J21: m2 -> ton | K21: =K26*Standardvärden!J4 -> 0.08972
B22: MJ/tkm | C22: 2.5 | I22: ABT | J22: m2 -> ton | K22: =K26*Standardvärden!J5 -> 0.08972
B23: kg CO2e/l | C23: 2.8 | I23: AG | J23: m2 -> ton | K23: =K26*Standardvärden!J6 -> 0.13458
B24: MJ/l | C24: 43.3 | I24: MJAG/MJOG | J24: m2 -> ton | K24: =K26*Standardvärden!J7 -> 0.11215
B25: Inverterat värmevärde | E25: l/MJ | F25: 0.028345 | J25: ton -> kg | K25: 1000
B26: Omräkning kg CO2/ton | E26: =(C22*C23*F25) -> 0.198415 | G26: för 1 km | J26: kg -> ton | K26: 0.001
D27: Omräkningar transport järnväg
D28: MJ -> Kwh | E28: 0.27777778 | I28: Plast
C29: El | D29: kg CO2e/kWh | E29: 0.012 | J29: Omvandlingsfaktorer
B30: Bränsleförbrukning | D30: MJ/tkm | E30: 0.3 | I30: Vikt dim 200 | K30: 3.6 | L30: kg/m
B31: Summa transport kg CO2/ton | E31: =(E30*E29*Standardvärden!E28) -> 0.001000000008 | G31: för 1 km | I31: Vikt dim 225 | K31: 19 | L31: kg/m
B32: Viktat medelvärde transport | E32: =E20*(Standardvärden!D12/SUM(Standardvärden!D12:D14))+E26*(Standardvärden!D13/SUM(Standardvärden!D12:D14))+E31*(Standardvärden!D14/SUM(Standardvärden!D12:D14)) -> 0.03838857143 | G32: kg CO2/m3 | J32: kg -> ton | K32: 0.001
B34: Anläggningssten | I34: Omräkningar transport landsväg
B35: Omvandlingsfaktorer | J35: dim 200 | K35: dim 225
B36: kg -> m3 | C36: 2719 | I36: MJ/tkm | J36: 1 | K36: 1
B37: kg -> ton | C37: 0.001 | I37: kg CO2e/l | J37: 2.8 | K37: 2.8
E38: Omräkningar transport landsväg | I38: MJ/l | J38: 43.3 | K38: 43.3
E39: MJ/tkm | F39: 1 | I39: Inverterat värmevärde | L39: l/MJ | M39: 0.028345 | N39: 0.028345
E40: kg CO2e/l | F40: 2.8
E41: MJ/l | F41: 43.3 | I41: Omräkning kg CO2/m3 | M41: =(1*1*Standardvärden!K30*Standardvärden!K32*J36*J37*M39) -> 0.0002857176 | N41: =(1*1*Standardvärden!K31*Standardvärden!K32*K36*K37*N39) -> 0.001507954
B42: Inverterat värmevärde | E42: l/MJ | F42: 0.028345 | I42: Omräkningar transport närdistr.
J43: dim 200 | K43: dim 225
B44: Omräkning kg CO2/m3 | E44: =(Standardvärden!C36*Standardvärden!C37*F39*F40*F42) -> 0.215796154 | G44: för 1 km | I44: MJ/tkm | J44: 2.5 | K44: 2.5
E45: Omräkningar transport närdistr. | I45: kg CO2e/l | J45: 2.8 | K45: 2.8
E46: MJ/tkm | F46: 2.5 | I46: MJ/l | J46: 43.3 | K46: 43.3
E47: kg CO2e/l | F47: 2.8 | I47: Inverterat värmevärde | L47: l/MJ | M47: 0.028345 | N47: 0.028345
E48: MJ/l | F48: 43.3
B49: Inverterat värmevärde | E49: l/MJ | F49: 0.028345 | I49: Omräkning kg CO2/m3 | M49: =(1*1*Standardvärden!K30*Standardvärden!K32*J44*J45*M47) -> 0.000714294 | N49: =(1*1*Standardvärden!K31*Standardvärden!K32*K44*K45*N47) -> 0.003769885
I50: Viktat medelvärde transport kg CO2/m | N50: =M41*(Standardvärden!K53/SUM(Standardvärden!K53:K54))+M49*(Standardvärden!K54/SUM(Standardvärden!K53:K54)) -> 0.000317464 | O50: =N41*(Standardvärden!K53/SUM(Standardvärden!K53:K54))+N49*(Standardvärden!K54/SUM(Standardvärden!K53:K54)) -> 0.001675504444 | P50: för 1 km
B51: Omräkning kg CO2/m3 | E51: =(Standardvärden!C36*Standardvärden!C37*F46*F47*F49) -> 0.539490385 | G51: för 1 km | J51: Transportparametrar
K52: km
B53: Viktat medelvärde transport | E53: =E44*(400/440)+E51*(40/440) -> 0.2452229023 | G53: kg CO2/m3 | I53: Lastbil Landsväg | K53: 500
I54: Lastbil närdistr. | K54: 40
